Cogmind - Beta 15 @@@ ROGUE MODE // 2025.05.16 @ 15:11:27 Player: Cholfo Result: Destroyed by Y-45 Defender with Beam Rifle Performance ------------- Evolutions (0) 0 Regions Visited (3) 600 Robots Destroyed (19) 95 Value Destroyed (522) 522 Prototype IDs (0) 0 Alien Tech Used (0) 0 Bonus (0) 0 TOTAL SCORE: 1217 Bonus ------- None Cogmind --------- Core Integrity 0/250 Matter 300/300 Energy 200/200 System Corruption 0% Temperature Cool (9) Movement Rolling (110) Ox2 Location -9/Recycling Parts ------- > --- POWER (1) -------- Subdweller Power Source > --- PROPULSION (2) --- Wheel Wheel > --- UTILITY (2) ------ Large Storage Unit Makeshift Light Armor Plating > --- WEAPON (2) ------- Subdweller Beam Cannon Rocket Launcher > --- INVENTORY (15) --- Spiked Treads Subdweller Monowheel Subdweller Monowheel Large Matter Pod (150) Subdweller Optics Scrap Shield Tower Shield Spread Laser Subdweller Laser Subdweller Machine Gun Subdweller Machine Gun Peak State ------------ > --- POWER ------------ Light Ion Engine > --- PROPULSION ------- Subdweller Monowheel Subdweller Monowheel > --- UTILITY ---------- Large Storage Unit Makeshift Light Armor Plating > --- WEAPON ----------- Heavy Battle Rifle Rocket Launcher > --- INVENTORY -------- Subdweller Power Source Subdweller Power Source Spiked Treads VTOL Module Large Matter Pod Scrap Shield Tower Shield Riot Gun Riot Gun Small Laser Subdweller Machine Gun Subdweller Machine Gun Rocket Launcher [Rating: 20] Favorites ----------- Power Light Ion Engine Engine Light Ion Engine Propulsion Subdweller Monowheel Treads Spiked Treads Wheel Subdweller Monowheel Flight Unit VTOL Module Utility Large Storage Unit Device Improved Terrain Scanner Storage Large Storage Unit Protection Makeshift Light Armor Plating Weapon Rocket Launcher Energy Gun Riot Gun Energy Cannon Subdweller Beam Cannon Ballistic Gun Heavy Battle Rifle Launcher Rocket Launcher Build | -11 -10 -10 -9 ------- Run | Yrd Mat Sub Rec Slots Evolved . | . . . . Power . | . . . . Propulsion . | . . . . Utility . | . . . . Weapon . | . . . . Parts Attached 30 | 7 6 15 2 Power 3 | 1 1 1 . Engine 3 | 1 1 1 . Core . | . . . . Reactor . | . . . . Propulsion 11 | 2 2 5 2 Treads 2 | . . 2 . Leg . | . . . . Wheel 7 | 2 . 3 2 Hover . | . . . . Flight 2 | . 2 . . Utility 5 | 2 1 2 . Device 2 | 1 1 . . Storage 2 | 1 . 1 . Processor . | . . . . Hackware . | . . . . Protection 1 | . . 1 . Artifact . | . . . . Weapon 11 | 2 2 7 . Energy Gun 3 | 1 . 2 . Energy Cannon 1 | . . 1 . Ballistic Gun 5 | 1 1 3 . Ballistic Cannon . | . . . . Launcher 2 | . 1 1 . Special Weapon . | . . . . Impact Weapon . | . . . . Slashing Weapon . | . . . . Piercing Weapon . | . . . . Special Melee Weapon . | . . . . Unidentified Prototypes . | . . . . Parts Lost 10 | . 1 9 . Power 2 | . 1 1 . Propulsion 3 | . . 3 . Utility 1 | . . 1 . Weapon 4 | . . 4 . Highest Loss Streak 2 | . 1 2 . To Critical Strikes . | . . . . Average Backups 10 | 1 5 10 10 Power 1 | . . 1 . Propulsion 2 | 1 1 2 3 Utility 2 | . 1 2 4 Weapon 3 | . 2 4 3 Tool/Special . | . . . . Unused Backups 13 | . 2 4 7 Power 2 | . . 2 . Propulsion 3 | . 1 1 1 Utility 4 | . . . 4 Weapon 4 | . 1 1 2 Tool/Special . | . . . . Average Slot Usage (%) 95 | . 90 95 99 Engine 13 | . 13 13 14 Treads 2 | . . 2 . Wheel 19 | . 3 21 27 Flight 4 | . 24 3 . Device 2 | . 18 . . Storage 12 | . 2 13 14 Protection 11 | . . 12 14 Energy Gun 7 | . 13 7 . Energy Cannon 2 | . . 1 14 Ballistic Gun 7 | . 13 7 . Launcher 10 | . . 11 14 Peak Build Rating 20 | 7 11 20 17 Average Rating 16 | 5 10 17 16 On Entrance 8 | . 7 10 16 Naked Turns . | . . . . Heaviest Build 41 | 12 12 41 41 Greatest Support 40 | 26 26 40 20 Greatest Overweight (x) 2 | . 2 2 2 Average Overweight (x) . | . . . 2 Largest Inventory Capacity 15 | 8 8 15 15 Average Capacity 13 | 7 5 14 15 Most Carried 15 | 4 8 15 13 Average Carried 11 | 1 5 12 12 Final Capacity 15 | 8 5 15 15 Final Carried 13 | 4 5 13 13 Class Distribution -------------------- 84% | Mutant 15% | Sprinter Dominant Class ---------------- Sprinter | -10/Materials Mutant | -10/Subcaves Mutant | -9/Recycling Resources | -11 -10 -10 -9 ----------- Run | Yrd Mat Sub Rec Matter Collected 1052 | 213 5 809 25 Remotely . | . . . . Salvage Created 491 | 19 4 468 . Parts 34 | 3 5 26 . Haulers Intercepted . | . . . . Recyclers Shooed . | . . . . Parts Field Recycled . | . . . . Retrieved Matter . | . . . . Parts Self-Destructed 10 | . . 10 . Prevented . | . . . . Kills | -11 -10 -10 -9 ------- Run | Yrd Mat Sub Rec Combat Hostiles Destroyed 18 | . 2 16 . Guns 4 | . . 4 . Cannons 3 | . . 3 . AOE 11 | . 2 9 . Classes Destroyed 4 | 1 1 2 . Tunneler 1 | 1 . . . Swarmer 7 | . 2 5 . Sentry 1 | . . 1 . Subdweller 10 | . . 10 . Best Kill Streak 3 | 1 2 3 . Combat Bots Only 3 | . 2 3 . Max Kills in Single Turn 2 | 1 2 2 . Gunslinging . | . . . . Exploded 2 | . 2 2 . Melee . | . . . . Uniques/NPCs Destroyed . | . . . . Combat | -11 -10 -10 -9 -------- Run | Yrd Mat Sub Rec Hostile Shots Fired 135 | . 7 127 1 Missed 46 | . 2 44 . Hits 89 | . 5 83 1 Projectile 89 | . 5 83 1 Critical Strikes 3 | . . 3 . Damage Taken 1222 | . 91 1117 14 Core 258 | . 4 240 14 Absorbed by Shields . | . . . . Core Remaining (%) 100 | 100 . . . Volleys Fired 64 | 4 3 57 . Largest 2 | 2 2 2 . Hottest 110 | 60 60 110 . Shots Fired 78 | 8 5 65 . Gun 49 | 8 4 37 . Cannon 8 | . . 8 . Launcher 21 | . 1 20 . Special . | . . . . Kinetic 34 | 4 2 28 . Thermal 14 | 4 2 8 . Explosive 21 | . 1 20 . Electromagnetic 9 | . . 9 . Robot Hit Streak 9 | 3 6 9 . Robot Miss Streak 2 | 1 1 2 . Penetration Max . | . . . . Secondary Targets . | . . . . Shots Hit Robots 44 | 5 4 35 . Core Hits 23 | 1 2 20 . Critical Kills . | . . . . Critical Parts Destroyed . | . . . . Critical Strikes . | . . . . Melee Attacks . | . . . . Impact . | . . . . Slashing . | . . . . Piercing . | . . . . Sneak Attacks . | . . . . Combat Hostiles . | . . . . Follow-up Attacks . | . . . . Damage Inflicted 1578 | 67 155 1356 . Guns 619 | 67 49 503 . Cannons 139 | . . 139 . Explosions 820 | . 106 714 . Melee . | . . . . Ramming . | . . . . Kinetic 467 | 47 27 393 . Thermal 233 | 20 22 191 . Explosive 768 | . 106 662 . Electromagnetic 110 | . . 110 . Impact . | . . . . Slashing . | . . . . Piercing . | . . . . Highest Corruption . | . . . . Average Corruption . | . . . . Corruption Purged . | . . . . Corruption Blocked . | . . . . Overload Shots . | . . . . Overflow Damage 103 | . 45 58 . Projectiles . | . . . . Explosions 103 | . 45 58 . Melee . | . . . . Knockbacks . | . . . . Impact . | . . . . Kinetic . | . . . . Secondary . | . . . . Self-Inflicted Damage 72 | . 9 63 . Shots 4 | . 1 3 . Rammed . | . . . . Targets Rammed . | . . . . Kicked . | . . . . Crushed . | . . . . Highest Temperature 16 | . 16 3 . Average Temperature 9 | . 11 3 . Received Heat Transfer 291 | . . 282 9 Siege Activations . | . . . . Martial Activations . | . . . . Shielding Activations . | . . . . Robots Disrupted . | . . . . Combat Hostiles . | . . . . Robots Corrupted . | . . . . Combat Hostiles . | . . . . Parts Fried . | . . . . Impact Corruptions . | . . . . Robots Melted . | . . . . Combat Hostiles . | . . . . Parts Melted . | . . . . Heat Transferred 335 | 50 50 235 . Parts Sabotaged . | . . . . Parts Stolen . | . . . . Parts Stripped . | . . . . Power Chain Reactions 1 | . . 1 . Alert | -11 -10 -10 -9 ------- Run | Yrd Mat Sub Rec Maximum Alert Level . | . . . . Low Security (%) 100 | 100 100 . 100 Level 1 . | . . . . Level 2 . | . . . . Level 3 . | . . . . Level 4 . | . . . . Level 5 . | . . . . High Security . | . . . . Max Security . | . . . . Peak Influence 96 | 5 96 . 88 Initial 88 | . . . 88 Average 39 | . 42 . 51 Influence Increases 407 | 5 126 270 6 Destroy 0b10 Robot/C 160 | . 40 120 . Destroy 0b10 Robot/NC 5 | 5 . . . Successful Hack 6 | . . . 6 Destroy Structure 11 | . 11 . . Lose Combat Pursuer 225 | . 75 150 . Influence Decreases 393 | 5 50 160 178 Entered New Map 135 | . . 37 98 Time Decay 219 | 5 40 94 80 Lost Part 39 | . 10 29 . Squads Dispatched 1 | . 1 . . Investigation . | . . . . Extermination . | . . . . Reinforcement 1 | . 1 . . Assault . | . . . . Garrison . | . . . . Intercept . | . . . . Searches Triggered . | . . . . Construction Impeded . | . . . . Haulers Reinforced . | . . . . Active Scanning Responses . | . . . . Cargo Convoy Interrupts . | . . . . Stealth | -11 -10 -10 -9 --------- Run | Yrd Mat Sub Rec Distress Signals . | . . . . Communications Jammed . | . . . . Distress Signals . | . . . . Times Spotted 36 | . 12 23 1 Peak Tracking Total 5 | . 5 5 . Tactical Retreats 6 | . 2 4 . Traps | -11 -10 -10 -9 ------- Run | Yrd Mat Sub Rec Traps Triggered 4 | . 3 1 . Indirectly . | . . . . Trap Hack Attempts . | . . . . Triggered . | . . . . Disarmed . | . . . . Reprogrammed . | . . . . Reused . | . . . . Traps Extracted . | . . . . Installed . | . . . . Triggered . | . . . . Machines | -11 -10 -10 -9 ---------- Run | Yrd Mat Sub Rec Machines Disabled 1 | . . 1 . Max in Single Turn 1 | . . 1 . Machines Repaired . | . . . . Machines Dismantled . | . . . . Machines Sabotaged . | . . . . Overloaded Fab Kills . | . . . . Hacking | -11 -10 -10 -9 --------- Run | Yrd Mat Sub Rec Machines Accessed 2 | . . . 2 Terminals 2 | . . . 2 Fabricators . | . . . . Repair Stations . | . . . . Recycling Units . | . . . . Scanalyzers . | . . . . Garrison Access . | . . . . Total Hacks 5 | . . . 5 Successful 1 | . . . 1 Failed 4 | . . . 4 Catastrophic . | . . . . Database Lockouts . | . . . . Manual 5 | . . . 5 Terminals 5 | . . . 5 Fabricators . | . . . . Repair Stations . | . . . . Recycling Units . | . . . . Scanalyzers . | . . . . Garrison Access . | . . . . Terminal Hacks 1 | . . . 1 Zone Layout 1 | . . . 1 Fabricator Hacks . | . . . . Repair Station Hacks . | . . . . Recycling Unit Hacks . | . . . . Scanalyzer . | . . . . Garrison Access Hacks . | . . . . Unauthorized Hacks . | . . . . Terminals . | . . . . Fabricators . | . . . . Repair Stations . | . . . . Recycling Units . | . . . . Scanalyzers . | . . . . Garrison Access . | . . . . Data Cores Recovered . | . . . . Used . | . . . . Hacking Detections 2 | . . . 2 Full Trace Events . | . . . . Feedback Events . | . . . . Feedback Blocked . | . . . . Robot Schematics Acquired . | . . . . Robots Built . | . . . . Authchips . | . . . . Time . | . . . . Total Robot Build Rating . | . . . . Part Schematics Acquired . | . . . . Parts Built . | . . . . Authchips . | . . . . Time . | . . . . Total Part Build Rating . | . . . . Parts Repaired . | . . . . Time . | . . . . Parts Recycled . | . . . . Recycled Matter . | . . . . Retrieved Matter . | . . . . Retrieved Components . | . . . . Parts Scanalyzed . | . . . . Part Schematics Acquired . | . . . . Parts Damaged . | . . . . Bothacking | -11 -10 -10 -9 ------------ Run | Yrd Mat Sub Rec Used RIF Installer . | . . . . Robots Hacked . | . . . . Non-combat . | . . . . Combat . | . . . . Robot Hacks Applied . | . . . . Relay Couplers Released . | . . . . Fabnet Peak Effective % . | . . . . Robots Rewired . | . . . . Allies Hacked . | . . . . Hacks Repelled . | . . . . Allies | -11 -10 -10 -9 -------- Run | Yrd Mat Sub Rec Total Allies . | . . . . Largest Group . | . . . . Highest-Rated Group . | . . . . Highest-Rated Ally . | . . . . Total Orders . | . . . . Ally Attacks . | . . . . Total Damage . | . . . . Kills . | . . . . Allies Corrupted . | . . . . Allies Melted . | . . . . Intel | -11 -10 -10 -9 ------- Run | Yrd Mat Sub Rec Active Infowar (turns) 241 | 5 173 63 . Terrain 219 | . 156 63 . Seismic 87 | 5 82 . . Robot Analysis Total . | . . . . Derelict Logs Recovered . | . . . . Drone Launches . | . . . . Drone Recoveries . | . . . . Exploration | -11 -10 -10 -9 ------------- Run | Yrd Mat Sub Rec Turns Passed 2033 | 64 173 1633 163 Spaces Moved 1775 | 44 268 1318 145 Core 2 | 2 . . . Treads 55 | . . 55 . Legs . | . . . . Wheels 1324 | 42 7 1130 145 Hover . | . . . . Flight 394 | . 261 133 . Fastest Speed 32 | 50 32 32 110 Average Speed 96 | 87 34 108 110 Slowest Speed 360 | 90 195 360 110 Overloaded Moves . | . . . . Propulsion Burnouts . | . . . . Robots Hopped 3 | . 3 . . Potential Cave-ins . | . . . . Cave-ins Triggered . | . . . . Exploration Rate (%) 43 | 4 55 72 41 Regions Visited 3 Branch Regions 2 Pre-discovered Areas 1 | . . 1 . Known Exits Taken . | . . . . Unknown Exits Taken 3 | 1 1 1 . Scrap Searched 7 | . . 7 . Spaces Dug 27 | . . 27 . Terrain Destroyed 154 | . 11 143 . Melee . | . . . . Projectile 3 | . . 3 . AOE 151 | . 11 140 . Terrain Rammed . | . . . . Walls Destroyed . | . . . . Machines Disabled . | . . . . Actions | -11 -10 -10 -9 --------- Run | Yrd Mat Sub Rec Total 2003 | 58 341 1456 148 Wait 68 | . 45 23 . Move 1766 | 43 261 1317 145 Hop 3 | . 3 . . Pick Up 34 | 4 8 21 1 Fast Attach 19 | 7 7 5 . Attach 11 | . 1 9 1 Detach 5 | . 2 3 . Swap 13 | . 2 10 1 Drop 20 | . 9 11 . Fire 64 | 4 3 57 . Melee . | . . . . Ram . | . . . . Kick . | . . . . Crush . | . . . . Escape Stasis . | . . . . Rewire . | . . . . Trap . | . . . . Miscellaneous . | . . . . Route ------- -11/Scrapyard -10/Materials (discovered 2 exits: [*Mat] / [*Sub]) -10/Subcaves (discovered 3 exits: [*Mat x2] / *Rec) -9/Recycling History --------- Turn | Location | Event 2 | -11/Scrapyard | Met Revision 17 15 | -11/Scrapyard | Discovered new exit (range 16) 65 | -11/Scrapyard | Entered Materials 127 | -10/Materials | Discovered new exit (range 16) 235 | -10/Materials | Discovered new exit (range 3) 238 | -10/Materials | Entered Subcaves 282 | -10/Subcaves | Disturbed a concealed Subdweller 309 | -10/Subcaves | Build established: Sprinter 467 | -10/Subcaves | Learned location of Zion (-7) 467 | -10/Subcaves | Met a Zionite searching for "candidates" 487 | -10/Subcaves | Shifting Twisted Machinery released Hvy. Battle Rifle 495 | -10/Subcaves | Shifting Twisted Machinery released Sub. Machine Gun 528 | -10/Subcaves | Ambushed by Subdweller buried in earth 530 | -10/Subcaves | Ambushed by Subdweller buried in earth 622 | -10/Subcaves | Build established: Mutant 744 | -10/Subcaves | A swath of the cavern ceiling suddenly collapsed 820 | -10/Subcaves | Visited 4L-MR0's lab 835 | -10/Subcaves | Found Prototype Protection 1089 | -10/Subcaves | Ambushed by Subdweller buried in earth 1093 | -10/Subcaves | Ambushed by Subdweller buried in earth 1159 | -10/Subcaves | A swath of the cavern ceiling suddenly collapsed 1230 | -10/Subcaves | Shifting Twisted Machinery released Mak. Thermal Plating 1253 | -10/Subcaves | Shifting Twisted Machinery released Sub. Beam Cannon 1448 | -10/Subcaves | Discovered new exit (range 8) 1641 | -10/Subcaves | Ambushed by Subdweller buried in earth 1641 | -10/Subcaves | Ambushed by Subdweller buried in earth 1709 | -10/Subcaves | Discovered new exit (range 15) 1724 | -10/Subcaves | Core integrity fell below 50% 1810 | -10/Subcaves | Core integrity fell below 20% 1841 | -10/Subcaves | Discovered new exit (range 14) 1871 | -10/Subcaves | Entered Recycling 2034 | -9/Recycling | Destroyed by Y-45 Defender with Beam Rifle Last Messages --------------- repair. 01819_ Flight Unit fries itself beyond repair. 01819_ Acquired 19 matter. 01822_ Acquired Wheel. 01823_ Acquired 24 matter. 01827_ Flight Unit fries itself beyond repair. 01838_ Acquired 10 matter. 01841_ EXIT=FOUND 01866_ Lgt. Treads destroyed. LOCATION=UNKNOWN GOAL=ESCAPE 01899_ Connecting with Terminal... 01899_ Current location identified: Recycling 01925_ Acquired 25 matter. 01939_ Acquired Spread Laser. 02026_ Connecting with Terminal... >>Layout(Zone) Retrieving Zone 2T layout... Downloaded map data. 02034_ Y-45 Defender springs to life. Map ----- +----------------------------------------------------+ | ?????????????????????????????????????????????????? | | ?????????????????????????????????????????????????? | | ?????????????????????????????????????????????????? | | ?????????????????????????????????????????????????? | | ?????????????????????????????????????????????????? | | ?????????????????????????????????????????????????? | | ?????????????????????????????????????????????????? | | ?????????????????????????????????????????????????? | | ?????????????????????????????????????????????????? | | ?????????????????????????????????????????????????? | | ?????????????????????????????????????????????????? | | ?????????????????????????????????????????????????? | | ?????????????????????????????????????????????????? | | ?????????????????????????????????????????????????? | | ?????????????????????????????????????????????????? | | ??????????????????####################???###?????? | | ?????????????????? ##### ####### | | ?????????????????? ## | | ?????????????????? ## | | ?????????????????# ## | | ?????????????????# ## | | ?????????????????# """ """ """ ## | | ?????????????????# """ """ """ + | | ?????????????????# """ """ """ # | | ?????????????????# ####+####### | | ????????????????+ @ #?????? | | ????????????????# ##### #"T"### ###???? | | ????????????????# #???# #"""#?# ""#???? | | ????????????? r #???# #####?# Y"#???? | | ??????????? ##Y## #???# #?????# ""#???? | | ???????????? ##+#####+#???# #?????# ###???? | | ????????????# ???? #??##+####### ######? | | ?????????????????? """ #### ## # ? | | ?????????????????? "Y" ""## ## # ? | | ?????????????????? T"## ## # ? | | ?????????????????? """" ""## ## # ? | | ?????????????????? """" #### ## # ? | | ?????????????????? """" #### ## # ? | | ?????????????????? """" / + # + ? | | ?????????????????? # ## ## #### ? | | ??????????????????#"T"#### ## ## #??#####? | | ??????????????????#"""#??# ## ## #??#"""#? | | ????????????????????????????# ## ####"Y"## | | ?????????????????????????# ######+#### | | ?????????????????????????# | | ??????????????????????????### | | ????????????????????????????# """ """ """ "" | | ????????????????????????????# """ """ """ "" | | ??????????????????????????# """ """ """ "" | | ??????????????????????????# | +----------------------------------------------------+ Best States ------------- Heat Dissipation 25 Energy Generation 15 Energy Capacity 200 Matter Stores 300 Matter Capacity 300 Sight Range 16 Terrain Scan Range 16 Terrain Scan Density 10 Armor Coverage 100 Evasion (%) 63 Recoil Reduction 2 Item Schematics ----------------- None Robot Schematics ------------------ None Fabricated ------------ Nothing Repaired ---------- Nothing Alien Tech Used ----------------- None Achievements -------------- None Challenges ------------ None Game ------ Seed MappingMultireflexStreamer Manual? 0 Play Time 00:21:30 Cumulative 15.4 hours Start 2025.05.16 @ 14:50:10 End 2025.05.16 @ 15:11:27 Sessions 1 Manual Loads 0 Difficulty Rogue Special Mode None Game No. 20 Rogue 20 Adventurer 0 Explorer 0 Win Type - Total 0 Types 0/0/0/0/0/0/0/0/0/0 Lore% 21 Gallery% 21 Achievement% 19 Wizard Run 0 Options --------- Layout 1 ASCII 1 Keyboard 1 Movement Vi Keybinds 0 Fullscreen 2 Font 32/SmallcapsGlow Map View 50x35 Zoom Use 0% Tactical HUD 1 Map Filters NONE Filters NONE Steam 1 RUN: 76f7e7f7-b76e-42af-838d-c9cf948c4977